bitfinex/quotes_BTCUSD_20220303
["timestamp","ask_amount","ask_price","bid_price","bid_amount"]
[1646322057789,0.360062,42600.0,42591.0,0.20123724]
[1646322057986,0.023,42601.0,42591.0,0.20123724]
[1646322057987,0.360062,42598.0,42591.0,0.20123724]
[1646322058589,0.30216836,42597.0,42591.0,0.20123724]
[1646322058793,0.023,42601.0,42590.0,0.21922638]
[1646322058794,0.360062,42596.0,42590.0,0.21922638]
[1646322058987,0.360062,42596.0,42587.0,0.01838206]
[1646322059391,0.360062,42600.0,42591.0,0.23]
[1646322059593,0.360062,42597.0,42591.0,0.23]
[1646322059788,0.360062,42597.0,42592.0,0.16634165]
[1646322060089,0.360062,42594.0,42591.0,0.23]
[1646322060290,0.343698,42605.0,42587.0,0.01838206]
[1646322060291,0.27020777,42590.0,42587.0,0.01838206]
[1646322060690,0.26520777,42590.0,42587.0,0.01838206]
[1646322060897,0.360062,42589.0,42587.0,0.01838206]
[1646322061089,0.360062,42589.0,42587.0,0.0011]
[1646322061090,0.30563782,42588.0,42587.0,0.0011]
[1646322061288,0.30563782,42588.0,42583.0,0.0005]
[1646322061289,0.360062,42585.0,42583.0,0.0005]
[1646322061534,0.360086,42585.0,42584.0,1.0]
[1646322061735,0.38272077,42590.0,42584.0,1.30563782]
[1646322061736,0.26520777,42590.0,42584.0,1.30563782]
[1646322062033,0.26520777,42590.0,42583.0,0.0005]
[1646322062238,0.360086,42589.0,42583.0,0.0005]
[1646322062436,0.360086,42589.0,42581.0,0.07721017]
[1646322062636,0.26520777,42590.0,42581.0,0.07721017]
[1646322062637,0.360086,42588.0,42581.0,0.07721017]
[1646322062835,0.02299,42587.0,42581.0,0.07721017]
[1646322063035,0.26520777,42590.0,42582.0,0.30563782]
[1646322063234,0.058744,42594.0,42584.0,1.0]
[1646322063435,0.360086,42593.0,42581.0,0.06547017]
[1646322063638,0.009392,42593.0,42581.0,0.06547017]
[1646322064037,0.023,42586.0,42582.0,0.66572382]
[1646322064239,0.00317346,42611.0,42602.0,0.00347486]
[1646322064440,0.00317346,42611.0,42599.0,0.0393]
[1646322064636,0.00317346,42611.0,42600.0,0.54077482]
[1646322064838,0.00317346,42611.0,42600.0,0.274437]
[1646322065037,0.00317346,42611.0,42606.0,0.15786075]
[1646322065292,0.00317346,42611.0,42607.0,0.399205]
[1646322065496,7.346e-05,42611.0,42610.0,0.235077]
[1646322065692,0.05,42616.0,42610.0,0.235077]
[1646322065895,0.15,42626.0,42612.0,0.35986]
[1646322066092,0.15,42626.0,42611.0,0.30563782]
[1646322066093,0.33576,42626.0,42615.0,0.21144262]
[1646322066395,0.27375574,42625.0,42616.0,0.359982]
[1646322066592,0.00700184,42615.0,42613.0,0.18910116]
[1646322066792,0.18576,42615.0,42614.0,0.20991]
[1646322066993,0.05,42630.0,42625.0,0.209837]
[1646322067192,0.058693,42630.0,42620.0,0.0393]
[1646322067397,0.058693,42630.0,42617.0,0.209877]
[1646322067398,0.64912841,42634.0,42633.0,0.16714275]
[1646322067603,0.64912841,42634.0,42633.0,0.37692875]
[1646322067794,0.63222841,42634.0,42633.0,0.39991875]
[1646322068099,0.267346,42648.0,42646.0,0.15699754]
[1646322068294,0.15,42648.0,42647.0,0.7077]
[1646322068493,0.15,42648.0,42647.0,0.88349268]
[1646322068694,0.08452,42649.0,42647.0,0.88349268]
[1646322068898,0.09288,42650.0,42649.0,0.70257684]
[1646322069135,0.05,42658.0,42649.0,0.70257684]
[1646322069338,0.117303,42663.0,42652.0,0.209658]
[1646322069535,0.117303,42663.0,42650.0,0.7077]
[1646322069839,0.117303,42663.0,42649.0,0.23]
[1646322069840,0.15,42654.0,42649.0,0.23]
[1646322070040,0.359985,42653.0,42649.0,0.23]
[1646322070237,0.15,42650.0,42649.0,0.23]
[1646322070435,0.94812444,42650.0,42649.0,0.01000295]
[1646322070934,0.94812444,42650.0,42631.0,0.4535]
[1646322070935,0.02299,42649.0,42626.0,0.01171]
[1646322071134,0.15,42638.0,42630.0,0.20002973]
[1646322071335,0.15,42638.0,42626.0,0.01171]
[1646322071336,0.66513922,42637.0,42626.0,0.01171]
[1646322071538,0.15,42632.0,42623.0,0.01171]
[1646322071736,0.15,42632.0,42617.0,0.71941]
[1646322071737,0.25050819,42628.0,42617.0,0.71941]
[1646322071935,0.05869,42629.0,42624.0,0.2036129]
[1646322072136,0.15,42627.0,42616.0,0.01171]
[1646322072336,0.117409,42625.0,42614.0,0.01173]
[1646322072536,0.15,42617.0,42614.0,0.01173]
[1646322072804,0.15,42617.0,42605.0,0.4515]
[1646322072805,0.15,42617.0,42605.0,0.01173]
[1646322073103,0.15,42617.0,42612.0,0.19014511]
[1646322073504,0.15,42617.0,42605.0,0.0011]
[1646322073702,0.208722,42610.0,42605.0,0.0011]
[1646322073902,0.359985,42609.0,42605.0,0.0011]
[1646322074305,0.058722,42610.0,42607.0,0.2075893]
[1646322074602,0.058722,42610.0,42605.0,0.0011]
[1646322075203,0.025,42622.0,42607.0,0.73069]
[1646322075407,0.15,42624.0,42609.0,0.7077]
[1646322075603,0.30515422,42623.0,42615.0,0.2099]
[1646322075903,0.15,42624.0,42615.0,0.2099]
[1646322075904,0.30515422,42627.0,42620.0,0.917571]
[1646322076104,0.058702,42630.0,42619.0,0.209876]
[1646322076105,0.15,42624.0,42619.0,0.209876]
[1646322076303,0.208696,42624.0,42618.0,0.20791597]
[1646322076562,0.15,42624.0,42618.0,0.20791597]
[1646322076751,0.15,42624.0,42619.0,0.7077]
[1646322076950,0.36385422,42630.0,42618.0,0.20791597]
[1646322077151,0.15,42623.0,42618.0,0.20791597]
[1646322077352,0.058701,42624.0,42618.0,0.20791597]
[1646322077554,0.00221725,42629.0,42619.0,0.209878]
[1646322078058,0.00221725,42629.0,42618.0,0.20791597]
[1646322078059,0.15,42643.0,42624.0,0.7077]
[1646322078251,0.15,42643.0,42620.0,1.0393]
[1646322078252,0.15,42643.0,42632.0,0.73069]
[1646322078453,0.15,42643.0,42634.0,0.7077]
[1646322078653,0.45515422,42643.0,42635.0,0.209362]
[1646322078853,0.359962,42642.0,42628.0,0.16684425]
[1646322079053,0.45515422,42643.0,42629.0,0.917097]
[1646322079253,0.15,42642.0,42625.0,0.05101]
[1646322079452,0.058681,42640.0,42626.0,0.209411]
[1646322079853,0.23860963,42631.0,42621.0,0.01171]
[1646322080058,0.30515422,42630.0,42629.0,0.23]
[1646322080298,0.32814422,42639.0,42629.0,0.06186738]
[1646322080499,0.058686,42634.0,42629.0,0.06186738]
[1646322080898,0.30515422,42639.0,42630.0,0.209399]
[1646322081100,0.15,42640.0,42630.0,0.209399]
[1646322081299,0.15,42640.0,42635.0,0.19597692]
[1646322081603,0.15,42644.0,42638.0,0.7077]
[1646322081800,0.025,42653.0,42640.0,0.7077]
[1646322082002,0.15,42648.0,42640.0,0.7077]
[1646322082203,0.025,42653.0,42647.0,0.1855833]
[1646322082403,0.15166189,42645.0,42643.0,0.209306]
[1646322082603,0.15166189,42645.0,42644.0,0.917008]
[1646322082801,0.15166189,42645.0,42644.0,0.209308]
[1646322083401,0.15166189,42645.0,42644.0,0.41742706]
[1646322083601,0.15,42653.0,42646.0,0.73069]
[1646322083803,0.36105602,42657.0,42646.0,0.73069]
[1646322083804,0.36105602,42657.0,42653.0,0.7077]
[1646322084041,0.36105602,42657.0,42654.0,0.209242]
[1646322084042,0.05865,42657.0,42654.0,0.209242]
[1646322084241,0.05865,42657.0,42645.0,0.0347]
[1646322084445,0.30240602,42659.0,42647.0,0.7077]
[1646322084643,0.382952,42651.0,42634.0,0.00021928]
[1646322084846,0.50107502,42650.0,42634.0,0.00021928]
[1646322085042,0.49107502,42650.0,42634.0,0.00021928]
[1646322085344,0.188669,42650.0,42634.0,0.23256728]
[1646322085543,0.21886723,42648.0,42644.0,0.16408902]
[1646322086345,0.058665,42645.0,42634.0,0.00021928]
[1646322086543,0.058665,42645.0,42635.0,0.7077]
[1646322086743,0.058665,42645.0,42637.0,0.7077]
[1646322086944,0.058665,42645.0,42639.0,0.7077]
[1646322087243,0.203665,42645.0,42634.0,0.00021928]
[1646322087444,0.203665,42645.0,42644.0,0.00010647]
[1646322087445,0.058665,42645.0,42644.0,0.00010647]
[1646322087649,0.117307,42656.0,42646.0,0.7077]
[1646322087894,0.117307,42656.0,42647.0,0.209284]
[1646322088095,0.05,42666.0,42648.0,0.916978]
[1646322088301,0.05,42666.0,42656.0,0.7077]
[1646322088595,0.4798,42669.0,42651.0,0.73069]
[1646322088596,0.058645,42663.0,42651.0,0.73069]
[1646322088795,0.058645,42663.0,42653.0,0.7077]
[1646322088995,0.145,42671.0,42665.0,0.20539377]
[1646322088996,0.117274,42668.0,42665.0,0.20539377]
[1646322089198,0.359962,42667.0,42665.0,0.20539377]
[1646322089394,0.359962,42667.0,42656.0,0.30090548]
[1646322089395,0.359962,42667.0,42656.0,0.0393]
[1646322089595,0.058632,42667.0,42656.0,0.0393]
[1646322089794,0.058632,42667.0,42657.0,0.7077]
[1646322089795,0.053632,42667.0,42657.0,0.7077]
[1646322090394,0.053632,42667.0,42661.0,0.17082733]
[1646322090997,0.053632,42667.0,42665.0,0.1]
[1646322091399,0.504962,42666.0,42665.0,0.1]
[1646322091638,0.504962,42666.0,42657.0,0.09]
[1646322091639,0.058643,42663.0,42657.0,0.09]
[1646322091841,0.083643,42663.0,42657.0,0.09]
[1646322092140,0.058643,42663.0,42658.0,0.20940996]
[1646322092339,0.00887339,42664.0,42658.0,0.20940996]
[1646322092340,0.00387339,42664.0,42658.0,0.00019396]
[1646322092541,0.00387339,42664.0,42659.0,0.1832825]
[1646322092741,0.00387339,42664.0,42658.0,0.00019396]
[1646322092945,0.145,42659.0,42658.0,0.00010396]
[1646322093142,0.00624593,42655.0,42654.0,0.00142752]
[1646322093540,0.15124593,42655.0,42654.0,0.00142752]
[1646322093841,0.1760035,42652.0,42632.0,0.4783]
[1646322094041,0.1760035,42652.0,42638.0,0.21849863]
[1646322094042,0.145,42646.0,42638.0,0.21849863]
[1646322094240,0.145,42642.0,42638.0,0.21849863]
[1646322094440,0.4,42646.0,42632.0,0.38680151]
[1646322094640,0.4,42646.0,42629.0,0.01171]
[1646322094641,0.425,42646.0,42629.0,0.01171]
[1646322094840,0.32590548,42646.0,42637.0,0.88398141]
[1646322095042,0.145,42647.0,42645.0,0.21531835]
[1646322095298,0.058663,42645.0,42637.0,0.17628141]
[1646322095497,0.058663,42645.0,42631.0,0.01171]
[1646322096099,0.117325,42650.0,42631.0,0.01171]
[1646322096100,0.30048696,42650.0,42631.0,0.01171]
[1646322096503,0.025,42650.0,42647.0,0.21023867]
[1646322096705,0.00215574,42648.0,42647.0,0.21023867]
[1646322096902,0.24889727,42648.0,42647.0,0.21023867]
[1646322097101,0.00215574,42648.0,42647.0,0.21023867]
[1646322098102,0.21377106,42648.0,42647.0,0.21023867]
[1646322098905,0.21377106,42648.0,42647.0,0.8977]
[1646322099165,0.21377106,42648.0,42647.0,0.19]
[1646322099166,0.00215574,42648.0,42647.0,0.19]
[1646322099374,0.00215574,42648.0,42647.0,0.8977]
[1646322099569,0.00215574,42648.0,42647.0,0.19]
[1646322100167,0.00215574,42648.0,42647.0,0.8977]
[1646322100368,0.00215574,42648.0,42637.0,0.02299]
[1646322100673,0.00215574,42648.0,42642.0,0.01217383]
[1646322100872,0.00215574,42648.0,42643.0,0.06229]
[1646322101066,0.00215574,42648.0,42645.0,0.02299]
[1646322101270,0.00215574,42648.0,42646.0,0.76999]
[1646322101467,0.00215574,42648.0,42647.0,0.73069]
[1646322101674,0.00215574,42648.0,42647.0,0.76999]
[1646322102168,0.00624593,42655.0,42647.0,1.07061512]
[1646322102367,0.00624593,42655.0,42647.0,1.07080427]
[1646322102570,0.00624593,42655.0,42654.0,0.2059444]
[1646322102571,4.593e-05,42655.0,42654.0,0.2059444]
[1646322102819,0.00387339,42664.0,42656.0,0.73069]
[1646322103017,0.145,42662.0,42661.0,0.88731693]
[1646322103221,0.145,42662.0,42661.0,0.7077]
[1646322103418,0.00387339,42664.0,42661.0,0.7077]
[1646322103617,0.00387339,42664.0,42661.0,0.87047229]
[1646322103921,0.00387339,42664.0,42661.0,0.7077]
[1646322104117,0.00387339,42664.0,42662.0,0.7077]
[1646322104321,0.145,42663.0,42662.0,0.7077]
[1646322104719,0.00387339,42664.0,42662.0,0.7077]
[1646322105120,0.00387339,42664.0,42660.0,0.7077]
[1646322105520,0.145,42662.0,42660.0,0.7077]
[1646322105921,0.145,42662.0,42657.0,0.0393]
[1646322106122,0.145,42662.0,42647.0,0.00294416]
[1646322106123,0.145,42658.0,42647.0,0.00294416]
[1646322106322,0.13053157,42660.0,42647.0,0.00294416]
[1646322106323,0.145,42655.0,42647.0,0.00294416]
[1646322106576,0.145,42651.0,42647.0,0.00294416]
[1646322106860,0.145,42648.0,42647.0,0.00294416]
[1646322107059,0.804961,42648.0,42647.0,0.00294416]
[1646322107261,0.804961,42648.0,42647.0,0.00103416]
[1646322107461,0.804961,42648.0,42638.0,1.99740685]
[1646322107462,0.359961,42646.0,42638.0,1.99740685]
[1646322107660,0.63549257,42639.0,42638.0,1.99740685]
[1646322107858,0.17602,42650.0,42639.0,1.0]
[1646322108159,0.17602,42650.0,42638.0,1.99740685]
[1646322108160,0.17602,42650.0,42641.0,0.7077]
[1646322108458,0.20102,42650.0,42642.0,0.7077]
[1646322108657,0.17602,42650.0,42642.0,0.7077]
[1646322108858,0.17602,42650.0,42647.0,0.18374436]
[1646322109061,0.17602,42650.0,42645.0,0.16814245]
[1646322109259,0.058662,42646.0,42645.0,0.16814245]
[1646322109559,0.058662,42646.0,42645.0,0.87584245]
[1646322109758,0.00439308,42648.0,42645.0,0.87584245]
[1646322109961,0.05,42655.0,42647.0,0.8577]
[1646322110160,0.05,42655.0,42649.0,1.067563]
[1646322110393,0.058643,42662.0,42658.0,0.7077]
[1646322110588,0.058643,42662.0,42648.0,0.15]
[1646322110886,0.09,42655.0,42649.0,0.7077]
[1646322111086,0.09,42655.0,42649.0,0.636266]
[1646322111486,0.09,42655.0,42651.0,0.636266]
[1646322111690,0.09,42655.0,42652.0,0.17597274]
[1646322111886,0.09,42655.0,42653.0,1.067526]
[1646322112085,0.09,42655.0,42653.0,0.8577]
[1646322112286,0.00387339,42664.0,42653.0,0.8577]
[1646322112287,0.00387339,42664.0,42654.0,1.659816]
[1646322112486,0.00387339,42664.0,42654.0,1.359816]
[1646322112688,0.05864,42663.0,42653.0,0.15]
[1646322112888,0.05864,42663.0,42654.0,0.7077]
[1646322113289,0.24521886,42661.0,42654.0,0.7077]
[1646322113694,0.359962,42660.0,42654.0,0.7077]
[1646322113888,0.413617,42660.0,42654.0,0.7077]
[1646322114145,0.359962,42658.0,42654.0,0.7077]
[1646322114352,0.058649,42658.0,42652.0,0.359928]
[1646322114547,0.00387339,42664.0,42656.0,0.7027]
[1646322114744,0.00387339,42664.0,42658.0,0.7027]
[1646322114943,0.00387339,42664.0,42657.0,0.7077]
[1646322115142,0.00387339,42664.0,42659.0,0.7077]
[1646322115343,0.04887339,42668.0,42667.0,0.16551893]
[1646322115544,0.142265,42674.0,42667.0,0.87321893]
[1646322115745,0.359928,42673.0,42647.0,0.15]
[1646322115945,0.175928,42675.0,42647.0,0.70909262]
[1646322116145,0.058644,42670.0,42647.0,0.70909262]
[1646322116348,0.058644,42670.0,42648.0,0.01172]
[1646322116349,0.3,42669.0,42648.0,0.01172]
[1646322116747,0.3,42669.0,42663.0,0.31590653]
[1646322116748,0.025,42669.0,42663.0,0.31590653]
[1646322116951,0.359928,42679.0,42663.0,0.31590653]
[1646322117147,0.02299,42678.0,42663.0,0.16073453]
[1646322117349,0.025,42678.0,42665.0,1.067628]
[1646322117547,0.025,42678.0,42665.0,1.217628]
[1646322118004,0.025,42678.0,42668.0,0.7077]
[1646322118204,0.025,42678.0,42672.0,0.7077]
[1646322118404,0.025,42678.0,42677.0,0.18009369]
[1646322118604,0.07289255,42675.0,42655.0,0.11741319]
[1646322118804,0.3,42674.0,42657.0,0.399228]
[1646322119003,0.3,42674.0,42660.0,1.99740685]
[1646322119206,0.07289255,42675.0,42662.0,0.15]
[1646322119404,0.16289255,42675.0,42667.0,0.89608109]
[1646322119606,0.3,42674.0,42662.0,0.15]
[1646322119806,0.3,42674.0,42660.0,1.99740685]
[1646322119807,0.359928,42673.0,42660.0,1.99740685]
[1646322120006,0.359928,42673.0,42660.0,1.20242285]
[1646322120007,0.117294,42671.0,42660.0,1.20242285]
[1646322120204,0.117294,42671.0,42647.0,0.00139262]
[1646322120205,0.02299,42664.0,42647.0,0.00139262]
[1646322120407,0.02299,42660.0,42647.0,0.00124287]
[1646322120606,0.6022407,42653.0,42647.0,0.00124287]
[1646322120806,0.9022407,42653.0,42647.0,0.00124287]
[1646322121002,0.9022407,42653.0,42649.0,0.15]
[1646322121003,0.359928,42651.0,42649.0,0.15]
[1646322121206,0.759928,42650.0,42647.0,0.00124287]
[1646322121405,0.759928,42650.0,42632.0,0.15]
[1646322121406,0.02299,42646.0,42632.0,0.15]
[1646322121650,0.382918,42645.0,42633.0,0.7077]
[1646322121853,0.28764885,42634.0,42625.0,0.01171]
[1646322122055,0.058683,42635.0,42623.0,0.4977]
[1646322122256,0.058683,42635.0,42624.0,0.005154]
[1646322122451,0.26500001,42639.0,42630.0,0.15]
[1646322122653,0.26500001,42639.0,42625.0,0.71941]
[1646322122850,0.26500001,42639.0,42628.0,0.7077]
[1646322123252,0.26500001,42639.0,42632.0,0.16570146]
[1646322123953,0.26500001,42639.0,42633.0,0.359928]
[1646322123954,0.24000001,42639.0,42633.0,0.359928]
[1646322124156,0.24000001,42639.0,42619.0,0.01434068]
[1646322124157,0.23322803,42636.0,42619.0,0.01434068]
[1646322124355,0.23322803,42636.0,42600.0,0.012322]
[1646322124356,1.359973,42634.0,42600.0,0.012322]
[1646322124553,1.359973,42634.0,42592.0,0.33967631]
[1646322124554,0.15,42621.0,42596.0,0.7077]
[1646322124762,0.45,42623.0,42576.0,0.0033]
[1646322124763,2.27276689,42588.0,42576.0,0.0033]
[1646322124954,2.26804689,42588.0,42581.0,0.45611561]
[1646322125155,0.41454542,42592.0,42587.0,0.20458809]
[1646322125428,0.4509,42604.0,42587.0,0.20458809]
[1646322125429,0.32963638,42603.0,42588.0,1.0]
[1646322125611,0.4509,42614.0,42589.0,1.67707799]
[1646322125810,0.4759,42614.0,42608.0,0.20918017]
[1646322126008,0.4759,42614.0,42593.0,0.7077]
[1646322126009,0.48000001,42611.0,42593.0,0.7077]
[1646322126209,0.48000001,42611.0,42605.0,0.91281602]
[1646322126810,0.48000001,42611.0,42605.0,0.7077]
[1646322127012,0.55,42622.0,42609.0,0.73069]
[1646322127213,0.4539,42631.0,42608.0,1.0]
[1646322127214,0.4539,42631.0,42610.0,0.30225646]
[1646322127414,0.24000001,42616.0,42611.0,0.7077]
[1646322127611,0.24000001,42616.0,42615.0,0.7077]
[1646322127810,0.23992101,42616.0,42615.0,0.87323911]
[1646322128010,0.23992101,42616.0,42615.0,1.07218666]
[1646322128511,0.23992101,42616.0,42615.0,0.90664755]
[1646322128712,0.22707598,42614.0,42605.0,0.1]
[1646322128918,0.30225646,42613.0,42605.0,0.1]
[1646322129164,0.22707598,42614.0,42605.0,0.1]
[1646322129561,0.22707598,42614.0,42612.0,0.16623786]
[1646322129967,0.9973,42640.0,42613.0,1.32171772]
[1646322130163,0.9973,42640.0,42613.0,1.46537884]
[1646322130361,0.9973,42640.0,42614.0,0.01171]
[1646322130563,0.2762912,42630.0,42624.0,0.17186346]
[1646322130861,0.9973,42640.0,42621.0,0.7077]
[1646322131062,0.525,42640.0,42621.0,0.7077]
[1646322131264,0.025,42640.0,42621.0,0.7077]
[1646322131662,0.025,42640.0,42633.0,0.21646717]
[1646322131865,0.28003421,42633.0,42621.0,1.04606884]
[1646322132063,0.28003421,42633.0,42619.0,0.7077]
[1646322132263,0.28003421,42633.0,42619.0,1.02307884]
[1646322132467,0.28003421,42633.0,42615.0,0.0002554]
[1646322132664,0.1824864,42641.0,42615.0,0.0002554]
[1646322132665,0.359973,42632.0,42615.0,0.0002554]
[1646322132903,0.455,42640.0,42615.0,0.0002554]
[1646322133102,0.48,42640.0,42620.0,0.20050243]
[1646322133301,0.02468496,42640.0,42620.0,0.20050243]
[1646322133701,0.02468496,42640.0,42621.0,0.31537884]
[1646322133904,0.02468496,42640.0,42622.0,0.20891207]
[1646322134103,0.02468496,42640.0,42627.0,0.18304744]
[1646322134303,0.02468496,42640.0,42628.0,0.31537884]
[1646322134503,0.02468496,42640.0,42627.0,0.18304744]
[1646322134706,0.0018691,42638.0,42634.0,0.00106329]
[1646322135106,0.0018691,42638.0,42633.0,0.00324492]
[1646322135807,0.21702904,42635.0,42622.0,0.26589456]
[1646322136004,0.0018691,42638.0,42621.0,0.01172]
[1646322136206,0.0018691,42638.0,42632.0,0.59765492]
[1646322136406,0.0018691,42638.0,42634.0,0.59765492]
[1646322136643,0.0018691,42638.0,42635.0,0.0393]
[1646322137043,0.26557127,42637.0,42635.0,0.0343]
[1646322137243,0.359973,42636.0,42635.0,0.0343]
[1646322137442,0.02299,42635.0,42622.0,0.0393]
[1646322137647,0.02299,42635.0,42618.0,0.01172]
[1646322137648,0.00190101,42639.0,42619.0,0.02299]
[1646322137843,0.00190101,42639.0,42624.0,0.02299]
[1646322138044,0.00190101,42639.0,42631.0,0.17047738]
[1646322138443,0.00190101,42639.0,42622.0,0.0001621]
[1646322138644,0.18115131,42635.0,42622.0,0.0001621]
[1646322138845,0.02299,42634.0,42622.0,0.0001621]
[1646322139144,0.33836884,42634.0,42622.0,0.0001621]
[1646322139541,0.33336884,42634.0,42622.0,0.0001621]
[1646322139743,0.01799,42630.0,42622.0,0.0001621]
[1646322139943,0.00190101,42639.0,42622.0,0.0001621]
[1646322139944,0.377963,42629.0,42622.0,0.0001621]
[1646322140503,0.359973,42629.0,42626.0,0.00106633]
[1646322140705,0.00374471,42630.0,42626.0,0.00106633]
[1646322140706,0.359973,42627.0,42626.0,0.00106633]
[1646322140908,0.6059798,42627.0,42626.0,0.00106633]
[1646322141304,0.5942698,42627.0,42626.0,0.00106633]
[1646322141512,0.2342968,42627.0,42626.0,0.00106633]
[1646322141704,0.90964864,42627.0,42626.0,0.00106633]
[1646322141906,0.72758737,42627.0,42626.0,0.00106633]
[1646322142105,0.02299,42625.0,42605.0,0.01171]
[1646322142308,0.31212264,42625.0,42605.0,0.01171]
[1646322142507,0.16945793,42627.0,42605.0,0.01171]
[1646322143107,0.25626243,42618.0,42606.0,0.88716466]
[1646322143304,0.31551514,42626.0,42606.0,0.88716466]
[1646322143505,0.16945793,42627.0,42608.0,0.7077]
[1646322143708,0.16374471,42630.0,42614.0,0.7077]
[1646322143906,0.16374471,42630.0,42620.0,0.17093967]
[1646322144148,0.22140851,42628.0,42615.0,0.28027231]
[1646322144351,0.00374471,42630.0,42613.0,0.18006469]
[1646322144749,0.18005374,42626.0,42607.0,0.1]
[1646322144948,0.18005374,42626.0,42608.0,0.7077]
[1646322145250,0.2747979,42625.0,42608.0,0.7077]
[1646322145453,0.02299,42623.0,42605.0,0.00171]
[1646322145650,0.16091696,42616.0,42605.0,0.00171]
[1646322146049,0.01173,42628.0,42605.0,0.00171]
[1646322146250,0.31551514,42631.0,42621.0,0.16228632]
[1646322146251,0.01173,42629.0,42621.0,0.16228632]
[1646322146448,0.01173,42629.0,42606.0,0.0393]
[1646322146449,0.01173,42629.0,42609.0,0.73069]
[1646322146650,0.01173,42629.0,42609.0,0.76999]
[1646322146848,0.00362898,42627.0,42626.0,0.00092374]
[1646322147048,0.24630515,42627.0,42626.0,0.00092374]
[1646322147650,0.00362898,42627.0,42616.0,0.7077]
[1646322147892,0.00362898,42627.0,42616.0,0.70362374]
[1646322148192,0.00362898,42627.0,42626.0,0.1]
[1646322148689,1.0,42626.0,42610.0,7.342e-05]
[1646322148894,0.02299,42624.0,42610.0,7.342e-05]
[1646322149290,0.01173,42623.0,42610.0,7.342e-05]
[1646322149491,0.03472,42623.0,42610.0,7.342e-05]
[1646322149691,0.01173,42623.0,42614.0,0.16267775]
[1646322149896,0.01173,42629.0,42615.0,0.16432546]
[1646322150093,0.16058676,42630.0,42615.0,0.4798406]
[1646322150294,0.16058676,42630.0,42615.0,0.16432546]
[1646322150492,0.16058676,42630.0,42615.0,0.31551514]
[1646322150696,0.16058676,42630.0,42610.0,7.342e-05]
[1646322150697,0.02299,42629.0,42610.0,7.342e-05]
[1646322150893,0.03472,42629.0,42610.0,7.342e-05]
[1646322151093,0.03472,42629.0,42610.0,0.31558856]
[1646322151296,0.01173,42628.0,42610.0,7.342e-05]
[1646322151540,0.19237826,42618.0,42612.0,0.20122322]
[1646322151837,0.28240675,42627.0,42612.0,0.20122322]
[1646322152337,0.314939,42626.0,42625.0,7.479e-05]
[1646322152540,0.00561509,42627.0,42625.0,7.479e-05]
[1646322152938,0.17580361,42627.0,42625.0,7.479e-05]
[1646322153139,0.314939,42626.0,42625.0,7.479e-05]
[1646322154342,0.326669,42626.0,42625.0,7.479e-05]
[1646322154742,0.02299,42620.0,42607.0,0.00054144]
[1646322154943,0.058711,42621.0,42607.0,0.00054144]
[1646322154944,0.081701,42621.0,42607.0,0.00054144]
[1646322155143,0.15825087,42619.0,42607.0,0.00054144]
[1646322155420,0.15825087,42619.0,42617.0,0.15715873]
[1646322155627,0.22592471,42618.0,42607.0,0.00054144]
[1646322155820,0.15825087,42619.0,42607.0,0.00054144]
[1646322156029,0.02299,42617.0,42607.0,0.00054144]
[1646322156222,0.17299,42615.0,42607.0,0.00054144]
[1646322156423,0.02299,42612.0,42600.0,0.0001]
[1646322156624,0.01173,42611.0,42600.0,0.0001]
[1646322156822,0.326669,42611.0,42600.0,0.0001]
[1646322157024,0.17355294,42609.0,42600.0,0.0001]
[1646322157223,0.17620324,42609.0,42600.0,0.0001]
[1646322157623,0.058737,42612.0,42600.0,0.0001]
[1646322157823,0.343607,42620.0,42600.0,0.0001]
[1646322158023,0.226182,42620.0,42603.0,0.7077]
[1646322158225,0.05,42620.0,42615.0,0.90599024]
[1646322158424,0.50561509,42627.0,42615.0,0.19829024]
[1646322158629,0.50657238,42627.0,42615.0,0.19829024]
[1646322158823,0.00172666,42626.0,42621.0,0.17470992]
[1646322159051,0.00172666,42626.0,42616.0,1.022639]
[1646322159451,0.00172666,42626.0,42616.0,0.7077]
[1646322159852,0.00172666,42626.0,42606.0,0.314939]
[1646322160051,0.00172666,42626.0,42607.0,0.7077]
[1646322160453,0.00172666,42626.0,42608.0,0.02299]
[1646322160851,0.00172666,42626.0,42610.0,0.02299]
[1646322161255,0.00172666,42626.0,42621.0,0.7077]
[1646322161451,0.00172666,42626.0,42612.0,0.73069]
[1646322161652,0.00172666,42626.0,42609.0,0.0393]
[1646322161653,0.00172666,42626.0,42614.0,0.97842377]
[1646322161855,0.24366189,42625.0,42608.0,0.29848837]
[1646322162054,0.06042366,42626.0,42602.0,0.1393]
[1646322162253,0.06042366,42626.0,42605.0,1.12035843]
[1646322162454,0.00172666,42626.0,42617.0,0.0001537]
[1646322163392,0.00172666,42626.0,42621.0,0.18102989]
[1646322163589,0.00172666,42626.0,42617.0,0.0001537]
[1646322164192,0.00657238,42627.0,42626.0,0.00345332]
[1646322164392,0.00095729,42627.0,42626.0,0.00345332]
[1646322164791,0.058677,42640.0,42626.0,0.71115332]
[1646322165092,0.17606839,42648.0,42626.0,0.71115332]
[1646322165093,0.314939,42647.0,42626.0,0.75045332]
[1646322165292,0.28941007,42644.0,42632.0,0.7077]
[1646322165493,0.28941007,42644.0,42627.0,0.7077]
[1646322165891,0.314939,42649.0,42637.0,0.91896797]
[1646322166091,0.314939,42650.0,42637.0,0.21126797]
[1646322166294,0.056,42651.0,42627.0,0.0393]
[1646322166541,0.01171,42650.0,42628.0,1.022639]
[1646322166939,0.2677769,42640.0,42628.0,0.7077]
[1646322167141,0.15513468,42639.0,42630.0,0.16202179]
[1646322167339,0.15513468,42639.0,42626.0,0.00345332]
[1646322167942,0.21381668,42639.0,42626.0,0.00345332]
[1646322168141,0.02299,42636.0,42618.0,0.46751428]
[1646322168542,0.02299,42633.0,42617.0,0.1]
[1646322168747,0.95,42637.0,42617.0,0.1]
[1646322168748,0.359973,42621.0,42617.0,0.1]
[1646322168947,0.359973,42619.0,42617.0,0.1]
[1646322169141,0.62530082,42619.0,42617.0,0.1]
[1646322169543,1.33657366,42618.0,42600.0,0.4666]
[1646322169743,0.02299,42613.0,42600.0,0.4666]